bitfinex/quotes_ETHUSD_20250924
["timestamp","ask_amount","ask_price","bid_price","bid_amount"]
[1758684470966,10.3098947,4154.3,4154.1,0.024]
[1758684471176,21.54630933,4154.3,4154.1,0.024]
[1758684471395,21.79150933,4154.3,4154.1,0.024]
[1758684471965,21.47098321,4154.3,4154.1,0.024]
[1758684472199,21.79118321,4154.3,4154.1,0.024]
[1758684473263,21.47098321,4154.3,4154.1,0.024]
[1758684473468,21.79118321,4154.3,4154.1,0.024]
[1758684474478,19.38403881,4154.3,4154.1,0.024]
[1758684475224,19.38283581,4154.3,4154.1,0.024]
[1758684476089,17.29983581,4154.3,4154.1,0.024]
[1758684476400,19.06263581,4154.3,4154.1,0.024]
[1758684476601,12.66343581,4154.3,4154.1,0.024]
[1758684476790,2.46061286,4154.3,4154.2,3.10400234]
[1758684476990,4.44861286,4154.3,4154.2,3.10400234]
[1758684477185,4.44861286,4154.3,4154.2,2.41120234]
[1758684477415,5.40294399,4154.4,4154.2,0.6968]
[1758684477613,4.071,4154.3,4154.2,2.41120234]
[1758684477816,5.40294399,4154.4,4154.3,2.4071444]
[1758684477998,9.47394399,4154.4,4154.3,2.4071444]
[1758684478201,12.47394399,4154.4,4154.3,3.0999444]
[1758684479344,0.12,4154.3,4154.2,0.004]
[1758684479719,0.12,4154.3,4154.2,2.41120234]
[1758684480041,5.42959487,4154.3,4154.2,0.004]
[1758684480229,5.74979487,4154.3,4154.2,0.004]
[1758684480543,8.75616939,4154.3,4154.2,0.004]
[1758684481048,6.34902499,4154.3,4154.2,0.004]
[1758684481451,6.02882499,4154.3,4154.2,0.004]
[1758684481620,14.58896939,4154.3,4154.2,0.004]
[1758684481816,11.93662499,4154.3,4154.2,0.004]
[1758684482152,0.37758136,4154.3,4154.2,3.10400234]
[1758684482458,4.07,4154.3,4154.2,0.6968]
[1758684482653,3.0,4154.5,4154.2,0.004]
[1758684482949,3.0,4154.5,4154.2,0.23]
[1758684482950,4.07,4154.4,4154.2,0.23]
[1758684483152,4.07,4154.4,4154.3,2.8739444]
[1758684483653,4.07,4154.4,4154.3,0.6928]
[1758684483825,5.78148072,4155.3,4154.3,0.6928]
[1758684484026,4.2030377,4155.2,4154.2,0.004]
[1758684484326,0.792,4155.0,4154.2,0.004]
[1758684484537,6.1991444,4154.3,4154.2,0.004]
[1758684484847,13.2175648,4154.3,4154.2,0.004]
[1758684485049,13.7829648,4154.3,4154.2,0.004]
[1758684485251,16.60583642,4154.3,4154.2,0.004]
[1758684485551,18.66398523,4154.3,4154.2,0.004]
[1758684486150,0.792,4154.0,4153.6,0.004]
[1758684486324,6.19949211,4153.7,4153.6,0.004]
[1758684486523,11.13491251,4153.7,4153.6,0.004]
[1758684486746,11.70031251,4153.7,4153.6,0.004]
[1758684486947,15.15920084,4153.7,4153.6,0.004]
[1758684488152,14.14315011,4153.7,4153.6,0.004]
[1758684489172,16.68115011,4153.7,4153.6,1e-08]
[1758684490016,17.53545839,4153.7,4153.6,1e-08]
[1758684490443,14.99745839,4153.7,4153.6,1e-08]
[1758684490643,3.19978195,4153.2,4153.1,1e-08]
[1758684490844,13.26898101,4153.2,4153.1,1e-08]
[1758684491030,14.3450921,4153.2,4153.1,1e-08]
[1758684491236,15.36054279,4153.2,4153.1,1e-08]
[1758684491452,15.36050993,4153.2,4153.1,1e-08]
[1758684491816,14.72282201,4153.2,4153.1,1e-08]
[1758684492225,15.57713029,4153.2,4153.1,1e-08]
[1758684492452,14.72282201,4153.2,4153.1,1e-08]
[1758684492832,14.72282201,4153.2,4151.8,0.35764787]
[1758684492833,12.31504006,4153.2,4151.8,0.35764787]
[1758684493030,0.792,4152.1,4151.8,0.35764787]
[1758684493246,6.20053585,4151.9,4151.8,1e-08]
[1758684493458,7.06566514,4151.9,4151.8,1e-08]
[1758684493657,13.59758446,4151.9,4151.8,1e-08]
[1758684493862,16.04042206,4151.9,4151.8,1e-08]
[1758684494382,16.60072206,4151.9,4151.8,1e-08]
[1758684494732,17.45058604,4151.9,4151.8,1e-08]
[1758684495359,16.60072206,4151.9,4151.8,1e-08]
[1758684496075,16.60172206,4151.9,4151.8,1e-08]
[1758684496645,10.12652206,4151.9,4151.8,1e-08]
[1758684496844,15.24942206,4151.9,4151.8,1e-08]
[1758684497165,9.88642206,4151.9,4151.8,1e-08]
[1758684497364,14.23522979,4151.9,4151.8,1e-08]
[1758684497733,13.59858446,4151.9,4151.8,1e-08]
[1758684498779,13.83868446,4151.9,4151.8,1e-08]
[1758684498978,13.59858446,4151.9,4151.8,1e-08]
[1758684499284,11.51458446,4151.9,4151.8,1e-08]
[1758684499490,3.792,4151.7,4151.3,0.2313]
[1758684499779,6.20082593,4151.4,4151.3,0.2313]
[1758684499962,11.13695522,4151.4,4151.3,0.004]
[1758684500549,11.13695522,4151.4,4151.3,0.4518]
[1758684500761,7.06595522,4151.4,4151.3,0.6791]
[1758684500967,11.13695522,4151.4,4151.3,0.6791]
[1758684501676,10.81312929,4151.4,4151.3,0.6791]
[1758684502179,10.81312929,4151.4,4151.3,0.004]
[1758684502180,13.22195522,4151.4,4151.3,0.004]
[1758684502345,14.86083117,4151.4,4151.3,0.004]
[1758684502764,8.70483117,4151.4,4151.3,0.004]
[1758684502968,8.70483117,4151.4,4151.3,0.6791]
[1758684502969,13.22134575,4151.4,4151.3,0.6791]
[1758684503781,13.22134575,4151.4,4151.3,0.004]
[1758684505564,14.07010383,4151.4,4151.3,0.004]
[1758684505762,0.792,4151.2,4150.9,0.004]
[1758684505937,15.0574602,4151.2,4150.9,0.004]
[1758684506141,15.90621828,4151.2,4150.9,0.004]
[1758684507178,15.90621828,4151.2,4151.1,1e-08]
[1758684507179,15.29690632,4151.2,4151.1,1e-08]
[1758684507476,2.40905805,4151.0,4150.9,1e-08]
[1758684507682,2.40923217,4150.7,4150.6,0.02730001]
[1758684507847,10.34409811,4150.7,4150.6,0.02730001]
[1758684508049,10.34409811,4150.7,4150.6,0.47510001]
[1758684508367,13.31079686,4150.7,4150.6,0.47510001]
[1758684509088,7.15479686,4150.7,4150.6,0.47510001]
[1758684509293,10.01986594,4150.7,4150.6,0.47510001]
[1758684509593,12.42909811,4150.7,4150.6,0.47510001]
[1758684509744,10.01986594,4150.7,4150.6,0.47510001]
[1758684509949,2.40946437,4150.3,4150.1,0.02]
[1758684510147,7.80248352,4150.2,4150.1,0.02]
[1758684510542,0.73148352,4150.2,4150.1,0.6951]
[1758684510781,0.22077243,4150.2,4150.1,0.6951]
[1758684511093,0.22077243,4150.2,4150.1,3.10468049]
[1758684511239,0.22092274,4150.2,4150.1,3.10468049]
[1758684512208,2.976,4150.5,4150.4,2.40940632]
[1758684512357,0.22107317,4150.5,4150.4,3.08450632]
[1758684513597,3.84743147,4151.5,4150.9,2.40911609]
[1758684513598,2.579,4151.0,4150.9,2.40911609]
[1758684513762,0.22130983,4151.0,4150.9,2.40911609]
[1758684513961,0.22130983,4151.0,4150.9,3.08421609]
[1758684514280,0.73193915,4151.0,4150.9,0.6751]
[1758684514481,0.86492374,4151.0,4150.9,0.6751]
[1758684514893,3.0,4150.9,4150.6,0.6751]
[1758684515054,3.04740069,4150.7,4150.1,0.02]
[1758684515258,0.86492374,4150.6,4150.3,2.409408]
[1758684515592,0.73193915,4150.5,4150.4,2.88130038]
[1758684515895,0.22130983,4150.5,4150.4,0.6751]
[1758684516079,0.22130983,4150.5,4150.4,3.08450632]
[1758684517488,0.22130983,4150.5,4150.4,3.20450632]
[1758684518094,0.22130983,4150.5,4150.4,0.7951]
[1758684518424,0.22130983,4150.5,4150.4,0.6751]
[1758684518425,0.86630744,4150.5,4150.4,0.6751]
[1758684518767,0.86630744,4150.5,4150.4,3.08450632]
[1758684519364,0.86630744,4150.5,4150.4,0.6751]
[1758684521502,0.86630744,4150.5,4150.1,0.7206]
[1758684521810,4.93730744,4150.4,4150.1,0.02]
[1758684522010,4.71373891,4150.3,4150.1,0.7206]
[1758684522316,6.27582987,4150.2,4150.1,0.7206]
[1758684522483,7.35596134,4150.2,4150.1,0.02]
[1758684522814,7.12326134,4150.2,4150.1,0.02]
[1758684523102,6.27582987,4150.2,4150.1,0.02]
[1758684523475,7.01840301,4150.2,4150.1,0.02]
[1758684523807,8.10494796,4150.2,4150.1,0.02]
[1758684524106,7.25110301,4150.2,4150.1,0.02]
[1758684524408,8.10471102,4150.2,4150.1,0.02]
[1758684525107,7.25110301,4150.2,4150.1,0.02]
[1758684525399,7.57130301,4150.2,4150.1,0.02]
[1758684525765,7.25110301,4150.2,4150.1,0.02]
[1758684525969,3.86630744,4150.2,4150.1,0.02]
[1758684526204,8.57735237,4150.2,4150.1,0.7206]
[1758684527074,10.9868748,4150.2,4150.1,0.7206]
[1758684527275,7.93730744,4150.2,4150.1,0.7206]
[1758684527869,4.93730744,4150.2,4150.1,0.7206]
[1758684528070,0.86630744,4150.2,4150.1,0.7206]
[1758684528371,4.93730744,4150.2,4150.1,0.7206]
[1758684528908,4.42558229,4150.2,4150.1,0.7206]
[1758684529067,4.93760123,4150.2,4150.1,0.7206]
[1758684529264,4.42558229,4150.2,4150.1,0.7206]
[1758684530081,4.42558229,4150.2,4150.1,0.7246]
[1758684530608,0.35458229,4150.2,4150.1,3.13418049]
[1758684530809,0.22130983,4150.2,4150.1,0.7246]
[1758684531035,0.35467251,4150.2,4150.1,0.024]
[1758684531637,0.35562086,4150.2,4150.1,0.7246]
[1758684531800,0.47562086,4150.2,4150.1,0.7246]
[1758684532003,7.15185871,4150.2,4150.1,0.024]
[1758684532237,7.38455871,4150.2,4150.1,0.024]
[1758684532413,9.66975871,4150.2,4150.1,0.024]
[1758684532595,10.52336672,4150.2,4150.1,0.024]
[1758684532795,9.34955871,4150.2,4150.1,0.024]
[1758684533235,9.49483436,4150.2,4150.1,0.024]
[1758684533437,11.38901193,4150.2,4150.1,0.024]
[1758684533735,13.79853436,4150.2,4150.1,0.024]
[1758684534035,7.96273436,4150.2,4150.1,0.024]
[1758684534238,13.79853436,4150.2,4150.1,0.024]
[1758684534402,14.43831903,4150.2,4150.1,0.024]
[1758684534600,13.79853436,4150.2,4150.1,0.024]
[1758684535335,14.20547853,4150.2,4150.1,0.024]
[1758684535707,13.79853436,4150.2,4150.1,0.024]
[1758684536247,14.43808833,4150.2,4150.1,0.024]
[1758684538202,13.79853436,4150.2,4150.1,0.024]
[1758684539518,13.56583436,4150.2,4150.1,0.024]
[1758684539722,13.56542481,4150.2,4150.1,0.024]
[1758684540250,7.40942481,4150.2,4150.1,0.024]
[1758684540409,4.99990238,4150.2,4150.1,0.024]
[1758684540612,0.73318696,4150.2,4150.1,0.7246]
[1758684540811,0.35521131,4150.2,4150.1,0.7246]
[1758684541074,4.42621131,4150.2,4150.1,0.7246]
[1758684541745,4.42621131,4150.2,4150.1,3.13418049]
[1758684542043,0.35521131,4150.2,4150.1,0.7246]
[1758684542386,7.42621131,4150.2,4150.1,0.7246]
[1758684542546,7.42621131,4150.2,4150.1,3.13418049]
[1758684542944,7.071,4150.2,4150.1,3.13418049]
[1758684543528,0.12,4150.3,4150.2,2.40952243]
[1758684543726,2.287,4150.5,4150.4,2.40939682]
[1758684544043,3.001,4150.6,4150.2,2.40947752]
[1758684544218,3.001,4150.6,4150.3,0.7006]
[1758684544420,3.001,4150.6,4150.4,2.40939571]
[1758684544918,4.072,4150.6,4150.5,0.7006]
[1758684545114,4.072,4150.6,4150.5,3.10994827]
[1758684546069,0.001,4150.6,4150.5,3.10994827]
[1758684546566,0.001,4150.6,4150.5,0.4528]
[1758684546730,0.001,4150.6,4150.5,0.7006]
[1758684546926,0.001,4150.6,4150.5,3.10994827]
[1758684547127,0.001,4150.6,4150.5,0.7006]
[1758684547334,3.6529,4150.6,4150.1,0.024]
[1758684547533,0.12,4150.2,4150.1,0.024]
[1758684547743,7.32333366,4150.2,4150.1,0.024]
[1758684547942,7.77825221,4150.2,4150.1,0.024]
[1758684548143,7.54555221,4150.2,4150.1,0.024]
[1758684548735,7.32333366,4150.2,4150.1,0.7246]
[1758684548934,7.32333366,4150.2,4150.1,0.024]
[1758684549260,3.25333366,4150.2,4150.1,0.024]
[1758684549569,3.47563665,4150.2,4150.1,0.024]
[1758684550294,4.23020032,4150.2,4150.1,0.024]
[1758684550595,5.17531047,4150.2,4150.1,0.024]
[1758684550870,13.4196329,4150.2,4150.1,0.024]
[1758684551078,4.85511047,4150.2,4150.1,0.024]
[1758684551239,4.11020032,4150.2,4150.1,0.024]
[1758684551434,12.67472275,4150.2,4150.1,0.024]
[1758684551662,13.4308329,4150.2,4150.1,0.024]
[1758684552146,11.02131047,4150.2,4150.1,0.024]
[1758684552347,13.4308329,4150.2,4150.1,0.024]
[1758684552537,13.7510329,4150.2,4150.1,0.024]
[1758684552879,14.5430329,4150.2,4150.1,1e-08]
[1758684553066,6.20158049,4150.1,4149.6,1e-08]
[1758684553247,4.05469174,4149.7,4149.6,1e-08]
[1758684553575,2.41010315,4149.2,4149.1,0.02]
[1758684553793,6.27794995,4149.2,4149.1,0.02]
[1758684553938,10.90954995,4149.2,4149.1,0.02]
[1758684554280,11.28763681,4149.2,4149.1,0.02]
[1758684554476,12.79653304,4149.2,4149.1,0.02]
[1758684554665,13.721716,4149.2,4149.1,0.02]
[1758684554863,0.792,4149.0,4148.1,0.02]
[1758684555080,4.054892,4148.2,4148.1,0.02]
[1758684555396,4.054892,4148.2,4147.1,0.02]
[1758684555397,2.41126543,4147.2,4147.1,0.02]
[1758684555540,2.41184699,4146.2,4146.0,0.006]
[1758684555876,11.92733294,4146.2,4146.0,0.006]
[1758684556078,5.41190516,4146.1,4146.0,1e-08]
[1758684556287,5.41190516,4146.1,4144.1,0.02]
[1758684556288,4.36404242,4146.1,4144.1,0.02]
[1758684556460,0.63496026,4145.7,4144.1,0.02]
[1758684556647,6.04729534,4145.4,4144.1,0.02]
[1758684556847,3.0,4145.2,4144.1,0.02]
[1758684557106,9.52248595,4145.2,4144.1,0.02]
[1758684557314,13.6373611,4145.2,4144.1,0.02]
[1758684557448,0.792,4145.1,4144.1,0.02]
[1758684557650,2.41301095,4144.2,4144.1,0.02]
[1758684557960,9.70207482,4144.2,4144.1,0.02]
[1758684558161,10.73026332,4144.2,4144.1,0.02]
[1758684558368,2.41324388,4143.8,4143.7,0.33064787]
[1758684558550,6.99672983,4143.8,4143.7,0.33064787]
[1758684558754,6.99672983,4143.8,4141.5,2.41455647]
[1758684558755,2.41336036,4143.6,4139.6,0.02611659]
[1758684558950,2.41430357,4142.0,4140.3,0.455]
[1758684559269,0.63085951,4143.2,4140.8,0.2493]
[1758684559270,2.41448054,4141.7,4140.8,0.2493]
[1758684559470,6.195,4141.6,4140.8,0.2493]
[1758684559670,4.11,4141.5,4140.0,0.7043]
[1758684559980,0.38884632,4141.5,4140.6,0.455]
[1758684560183,6.202,4141.4,4141.3,0.7043]
[1758684560352,7.115,4141.4,4141.3,0.7043]
[1758684560552,3.0,4141.3,4141.1,2.43478867]
[1758684560906,4.118,4141.3,4141.2,0.25414462]
[1758684561188,0.63085951,4143.2,4141.2,0.25414462]
[1758684561189,0.2414,4143.4,4141.2,0.70914462]
[1758684561391,1.41162756,4143.8,4141.3,0.7043]
[1758684561392,0.37872759,4142.5,4141.3,0.7043]
[1758684561592,2.434,4142.7,4142.5,2.4139446]
[1758684561774,2.087,4143.3,4142.6,0.2493]
[1758684561775,4.122,4142.8,4142.6,0.2493]
[1758684561951,4.122,4142.7,4141.4,2.40139415]
[1758684562155,2.41764787,4143.8,4143.7,2.41330212]
[1758684562405,0.33064787,4143.8,4142.4,2.087]
[1758684562596,4.45264787,4143.8,4143.4,2.41346525]
[1758684562797,4.45264787,4143.8,4143.0,0.2493]
[1758684562956,4.45264787,4143.8,4142.5,0.2493]
[1758684563160,0.3785,4143.4,4142.5,0.2493]
[1758684563370,3.0,4143.2,4142.6,2.41394293]
[1758684563691,4.124,4143.1,4142.8,2.41381521]
[1758684563854,4.124,4143.1,4139.6,0.02611659]
[1758684564055,7.70632445,4143.0,4139.2,17.27522082]
[1758684564255,3.95789522,4142.9,4140.7,0.455]
[1758684564518,6.97525,4143.1,4140.7,0.455]
[1758684564519,0.45025,4143.1,4140.7,0.455]
[1758684564715,3.0,4142.7,4140.7,0.455]
[1758684564869,3.0,4142.5,4140.7,0.455]
[1758684565208,4.8708,4142.6,4140.7,0.455]
[1758684565209,0.2414,4142.4,4140.7,0.455]
[1758684565512,0.68,4142.3,4140.7,0.455]
[1758684565655,3.68,4142.3,4140.7,0.455]
[1758684566001,0.2414,4142.9,4140.7,0.455]
[1758684566002,6.247,4142.2,4140.7,0.455]
[1758684566292,4.158,4142.1,4140.8,0.2493]
[1758684566495,0.02,4141.9,4140.9,0.455]
[1758684566696,0.02,4141.9,4141.0,2.66413389]
[1758684566872,0.02,4141.9,4141.0,2.66416358]
[1758684567069,0.02,4142.9,4141.1,0.7043]
[1758684567381,0.02,4142.9,4141.8,3.0]
[1758684567584,0.3785,4143.4,4143.3,2.4135351]
[1758684567897,0.267,4144.7,4143.8,2.41324388]
[1758684568195,0.3785,4144.7,4143.8,2.41324388]
[1758684568353,0.02,4144.9,4143.8,2.41324388]
[1758684568354,0.02,4144.9,4143.8,3.11754388]
[1758684569312,1e-08,4143.9,4143.8,3.11754388]
[1758684569529,1e-08,4143.9,4143.8,7.27754388]
[1758684569666,0.02,4144.9,4143.9,3.0]
[1758684569868,0.001,4145.2,4144.4,5.4128945]
[1758684570067,0.001,4145.7,4144.4,5.4128945]
[1758684570068,0.001,4145.7,4145.6,2.41219606]
[1758684570333,0.37842436,4146.5,4145.8,2.41207969]
[1758684570474,0.001,4146.1,4146.0,2.41196333]
[1758684570672,0.37842436,4146.5,4146.0,0.7043]
[1758684570919,2.108,4147.9,4146.7,2.41155617]
[1758684571072,0.12,4147.2,4146.8,2.41149802]
[1758684571272,0.02,4147.9,4146.8,3.11579802]
[1758684571504,0.12,4147.4,4146.8,3.11579802]
[1758684571912,0.12,4147.4,4146.8,2.41149802]
[1758684572226,0.12,4147.4,4146.8,2.86649802]
[1758684572627,0.2414,4147.6,4146.1,0.455]
[1758684572994,0.2414,4147.6,4145.8,4.4133]
[1758684572995,1e-08,4146.9,4146.2,17.97952082]
[1758684573191,0.02,4147.9,4146.3,3.0]
[1758684573529,0.02,4148.9,4147.5,3.0]
[1758684573705,0.02,4148.9,4147.4,2.41114915]
[1758684573706,0.02,4148.9,4148.8,2.41033551]
[1758684574029,0.02,4148.9,4148.5,2.41048776]
[1758684574190,0.02,4148.9,4148.5,6.5754934]
[1758684574386,0.02,4148.9,4148.0,0.455]
[1758684574603,0.02,4148.9,4147.3,2.543]
[1758684574786,0.02,4148.9,4147.3,0.455]
[1758684574990,0.6986,4148.8,4147.2,0.455]
[1758684575186,0.02,4148.9,4147.3,0.2493]
[1758684575391,0.02,4148.9,4147.4,0.455]
[1758684575596,0.2414,4148.8,4146.8,2.7913]
[1758684575837,0.2414,4148.8,4146.5,17.27522082]
[1758684575838,2.41045171,4148.6,4146.5,4.172]
[1758684576118,0.6986,4148.5,4146.5,4.172]
[1758684576346,0.6986,4148.4,4146.1,0.2693]
[1758684576548,0.792,4148.3,4146.7,2.41152487]
[1758684576748,3.20275465,4148.1,4146.1,0.02]
[1758684577066,0.792,4147.8,4146.1,0.02]
[1758684577378,2.41151468,4146.8,4146.1,0.02]
[1758684577519,3.0,4146.9,4146.1,0.02]
[1758684577724,0.2414,4146.7,4146.1,0.02]
[1758684577969,2.41184699,4146.2,4146.1,0.02]
[1758684578132,6.11044699,4146.2,4146.1,0.02]
[1758684578323,8.37394324,4146.2,4146.1,0.02]
[1758684578557,10.78579023,4146.2,4146.1,0.02]
[1758684579154,8.37394324,4146.2,4146.1,0.02]
[1758684579353,10.78579023,4146.2,4146.1,0.02]
[1758684580234,11.63461682,4146.2,4146.1,0.02]
[1758684580748,11.00375731,4146.2,4146.1,0.02]
[1758684580937,11.63461682,4146.2,4146.1,0.02]
[1758684581134,6.76201682,4146.2,4146.1,0.02]
[1758684581358,0.792,4146.0,4144.1,0.02]
[1758684581591,2.41233909,4145.4,4144.1,0.02]
[1758684581757,2.41242883,4145.2,4144.1,0.02]
[1758684581945,5.35807445,4145.2,4144.1,0.02]
[1758684582146,4.56601226,4145.2,4144.1,0.02]
[1758684582452,8.52514224,4145.2,4144.1,0.4909]
[1758684582674,7.67834324,4145.2,4144.1,0.4909]
[1758684583044,3.50134324,4145.2,4144.1,0.4909]
[1758684583381,3.50134324,4145.2,4144.3,2.41295053]
[1758684583571,0.6287113,4145.8,4145.1,0.7304]
[1758684583745,0.12,4145.3,4145.1,0.7304]
[1758684583946,2.41242883,4145.2,4145.1,0.02]
[1758684584153,2.63772883,4145.2,4145.1,0.02]
[1758684584376,3.35996442,4145.2,4145.1,0.02]
[1758684584548,1.57624689,4145.2,4145.1,0.02]
[1758684584748,1.35094689,4145.2,4145.1,0.02]
[1758684585099,8.89102553,4145.2,4145.1,1e-08]
[1758684585382,8.89102553,4145.2,4144.1,0.02]
[1758684585383,3.0,4145.1,4144.1,0.02]
[1758684585558,3.6327187,4145.2,4144.1,0.02]
[1758684585559,5.41301095,4144.2,4144.1,0.02]
[1758684585758,8.53556219,4144.2,4144.1,0.02]
[1758684585961,10.31924654,4144.2,4144.1,0.02]
[1758684586287,10.54454654,4144.2,4144.1,0.02]
[1758684587095,3.72223559,4144.2,4144.1,0.02]
[1758684587293,4.90523559,4144.2,4144.1,0.02]
[1758684587544,4.68663408,4144.2,4144.1,0.02]
[1758684588291,4.68663408,4144.2,4144.1,3.14346918]
[1758684588292,0.50363408,4144.2,4144.1,3.14346918]
[1758684588492,0.50363408,4144.2,4144.1,0.4909]
[1758684588791,0.50363408,4144.2,4144.1,0.02]
[1758684589093,3.0,4145.1,4144.1,3.14346918]
[1758684589094,0.62930963,4144.8,4144.1,3.14346918]
[1758684589261,2.41284269,4144.5,4144.1,0.02]
[1758684589469,4.81430963,4144.6,4144.2,0.004]
[1758684589470,0.50364293,4144.4,4144.2,0.004]
[1758684589664,0.50364293,4144.3,4144.2,0.004]
[1758684590362,0.50364293,4144.3,4144.2,0.4749]
[1758684590558,0.50364293,4144.3,4144.2,0.004]
[1758684591694,0.72277402,4144.3,4144.2,0.004]
[1758684592077,1.35208365,4144.3,4144.2,0.004]
[1758684592407,0.72277402,4144.3,4144.2,0.004]
[1758684592956,1.35389306,4144.3,4144.2,0.004]
[1758684593168,0.72277402,4144.3,4144.2,0.004]
[1758684593357,6.82502675,4144.3,4144.2,0.004]
[1758684593558,2.41301095,4144.2,4144.1,0.02]
[1758684593806,7.52327722,4144.2,4144.1,0.02]
[1758684594097,7.74857722,4144.2,4144.1,0.02]
[1758684594394,9.4601851,4144.2,4144.1,0.02]
[1758684594795,7.74857722,4144.2,4144.1,0.02]
[1758684594972,14.02357722,4144.2,4144.1,0.02]
[1758684595200,2.79117415,4144.2,4142.7,0.4709]
[1758684595403,0.63198215,4143.5,4143.2,2.41359335]
[1758684595585,0.50364293,4143.4,4143.3,2.6530351]
[1758684595881,0.50364293,4143.4,4143.3,3.1239351]
[1758684596482,0.12,4143.9,4143.8,2.41324388]
[1758684596684,0.62607123,4143.9,4143.8,2.88414388]
[1758684596928,0.62607123,4143.9,4143.8,3.12364388]
[1758684598130,3.0,4144.6,4144.5,2.41283628]
[1758684598131,0.75198215,4144.6,4144.5,2.41283628]
[1758684598285,1.47802775,4144.6,4144.5,2.41283628]
[1758684598485,1.47802775,4144.6,4144.5,3.12323628]
[1758684598733,0.8460456,4144.6,4144.5,3.12323628]
[1758684598882,0.62626765,4144.6,4144.5,3.12323628]
[1758684599548,0.50626765,4144.6,4144.5,3.12323628]
[1758684600014,0.12,4144.9,4144.8,2.41266164]
[1758684600227,0.62630281,4144.9,4144.8,2.41266164]
[1758684600402,19.73765755,4147.0,4144.8,2.41266164]
[1758684600403,1.01037759,4145.7,4144.8,0.7104]
[1758684600606,1.01037759,4145.7,4145.6,2.41219606]
[1758684600607,0.37839544,4145.7,4145.6,2.41219606]
[1758684600844,0.12,4146.0,4145.8,2.41207969]
[1758684601219,0.63198215,4146.6,4146.5,2.41167249]
[1758684601545,0.60298215,4147.3,4146.5,0.7104]
[1758684601751,0.12,4147.2,4146.7,2.41155617]
[1758684601965,0.12,4147.3,4147.2,2.41126543]
[1758684602102,0.001,4147.4,4147.2,2.41126543]
[1758684602303,0.001,4147.4,4147.1,2.41132357]
[1758684602548,0.12,4147.6,4147.1,2.41132357]
[1758684602549,0.12,4147.6,4147.5,2.41109101]
[1758684602764,0.02,4147.9,4147.3,2.41120729]
[1758684602963,0.02,4147.9,4147.8,2.41091663]
[1758684603167,0.02,4147.9,4147.4,4.19]
[1758684603373,0.12,4147.8,4147.6,2.41100952]
[1758684603530,0.02,4147.9,4147.8,2.41091663]
[1758684604283,0.02,4147.9,4147.8,3.12131663]
[1758684604782,0.02,4147.9,4147.8,3.14542579]
[1758684605264,0.02,4147.9,4147.8,3.12131663]
[1758684605637,0.02,4147.9,4147.8,6.59991663]
[1758684606052,0.02,4147.9,4147.8,7.31031663]
[1758684607176,0.02,4147.9,4147.8,3.12131663]
[1758684607343,0.02,4147.9,4146.3,3.22006605]
[1758684607344,0.02,4147.9,4146.7,0.2395]
[1758684607669,2.41091663,4147.8,4146.3,0.819]
[1758684607854,0.21992353,4147.7,4146.3,1.2899]
[1758684608054,0.21992353,4147.7,4146.3,0.4709]
[1758684608373,0.2463,4147.9,4146.3,2.88268569]
[1758684608542,0.2463,4147.9,4146.9,2.41143203]
[1758684608744,0.46622353,4147.9,4147.1,2.41132346]
[1758684608945,0.2463,4147.9,4146.4,0.0241173]
[1758684609156,0.021,4147.9,4147.5,2.41104173]
[1758684609469,0.021,4147.9,4147.6,2.41103288]
[1758684609668,0.021,4147.9,4147.6,0.02411032]
[1758684609878,0.021,4147.9,4147.8,2.41091663]
[1758684610057,0.021,4147.9,4147.5,3.12149043]
[1758684610284,0.021,4147.9,4147.8,2.41091663]
[1758684610796,0.021,4147.9,4147.4,0.4709]
[1758684611091,0.021,4147.9,4147.5,2.07111091]
[1758684611305,0.021,4147.9,4147.8,2.41091663]
[1758684611657,0.021,4147.9,4147.8,3.13452579]
[1758684612303,0.001,4148.4,4147.8,0.72360916]
[1758684612598,0.001,4148.4,4147.9,0.6995]
[1758684612893,0.001,4148.4,4148.3,2.41062603]
[1758684613294,0.001,4148.4,4148.3,6.60362603]
[1758684613494,0.001,4148.4,4148.3,6.72362603]
[1758684613694,0.001,4148.4,4148.3,2.53062603]
[1758684613993,0.001,4148.4,4148.1,2.41069463]
[1758684614201,0.001,4148.4,4148.3,2.41062603]
[1758684614899,0.001,4148.4,4148.3,3.23403229]
[1758684615285,0.001,4148.4,4148.3,3.20992603]
[1758684615804,0.001,4148.4,4148.3,7.28092603]
[1758684616388,0.001,4148.4,4148.3,2.84092603]
[1758684616574,0.001,4148.4,4148.3,6.60162603]
[1758684617098,0.001,4148.4,4148.3,2.84092603]
[1758684617285,0.001,4148.4,4148.3,7.03092603]
[1758684617601,0.001,4148.4,4147.7,0.6793]
[1758684617801,0.001,4148.4,4147.9,2.4108585]
[1758684618000,0.001,4148.4,4148.3,2.41062603]
[1758684618204,0.001,4148.4,4148.3,6.62373229]
[1758684618504,0.001,4148.4,4148.3,7.27892603]
[1758684619209,0.001,4148.4,4148.3,4.188]
[1758684619408,0.001,4148.4,4148.3,2.41062603]
[1758684619703,0.001,4148.4,4148.3,6.59962603]
[1758684620569,0.001,4148.4,4148.3,7.27892603]
[1758684621104,0.001,4148.4,4148.3,7.02992603]
[1758684621665,0.001,4148.4,4148.3,7.27892603]
[1758684622496,0.001,4148.4,4148.3,2.41062603]
[1758684622679,0.001,4148.4,4148.3,6.59662603]
[1758684622888,0.001,4148.4,4148.3,4.186]
[1758684623064,0.001,4148.4,4148.3,6.59662603]
[1758684623492,0.2358,4148.4,4147.2,0.249]
[1758684623692,0.2358,4148.4,4147.1,0.4303]
[1758684623892,0.2358,4148.4,4147.8,2.41086952]
[1758684624095,0.2358,4148.4,4147.9,4.21010858]